[Event "Early-Titled-Tuesday-Blitz-June-18-2024"]
[Site "Chess.com"]
[Date "2024.06.18"]
[Round "9"]
[White "ejalmedina"]
[Black "Schattman"]
[Result "0-1"]
[WhiteElo "2324"]
[BlackElo "2505"]
[TimeControl "180+1"]
[EndTime "9:46:09 PDT"]
[Termination "Schattman won on time"]

1. d4 {[%clk 0:03:00.9]} 1... d5 {[%clk 0:02:55.3]} 2. c4 {[%clk 0:03:00.9]}
2... e6 {[%clk 0:02:54.4]} 3. Nc3 {[%clk 0:03:00.7]} 3... Be7 {[%clk 0:02:54.7]}
4. cxd5 {[%clk 0:02:58.3]} 4... exd5 {[%clk 0:02:54]} 5. Bf4 {[%clk 0:02:57.7]}
5... c6 {[%clk 0:02:54.2]} 6. e3 {[%clk 0:02:56.5]} 6... Bf5 {[%clk 0:02:54]} 7.
Bd3 {[%clk 0:02:56.4]} 7... Bxd3 {[%clk 0:02:53]} 8. Qxd3 {[%clk 0:02:57]} 8...
Nf6 {[%clk 0:02:51.9]} 9. h3 {[%clk 0:02:46.6]} 9... O-O {[%clk 0:02:48.4]} 10.
Nf3 {[%clk 0:02:38.6]} 10... Re8 {[%clk 0:02:46.1]} 11. O-O {[%clk 0:02:38]}
11... Nbd7 {[%clk 0:02:45.1]} 12. Ne5 {[%clk 0:02:19]} 12... Ne4 {[%clk
0:02:27.3]} 13. Nxe4 {[%clk 0:01:51.8]} 13... dxe4 {[%clk 0:02:25.3]} 14. Qxe4
{[%clk 0:01:52.4]} 14... f6 {[%clk 0:02:24.4]} 15. Nxd7 {[%clk 0:01:48.7]} 15...
Qxd7 {[%clk 0:02:15.2]} 16. Qc2 {[%clk 0:01:45.7]} 16... Kh8 {[%clk 0:02:12.8]}
17. Rfd1 {[%clk 0:01:38]} 17... a5 {[%clk 0:02:09.7]} 18. Rac1 {[%clk 0:01:37]}
18... a4 {[%clk 0:02:09]} 19. Bg3 {[%clk 0:01:33.2]} 19... a3 {[%clk 0:02:08.4]}
20. b3 {[%clk 0:01:28.5]} 20... Rad8 {[%clk 0:02:06]} 21. Qc4 {[%clk 0:01:23.8]}
21... Qf5 {[%clk 0:02:01.8]} 22. Qc2 {[%clk 0:01:13.2]} 22... Qd7 {[%clk
0:01:55.3]} 23. e4 {[%clk 0:01:12.6]} 23... Bf8 {[%clk 0:01:48.9]} 24. d5 {[%clk
0:01:11.9]} 24... cxd5 {[%clk 0:01:44.1]} 25. exd5 {[%clk 0:01:12.8]} 25... Bd6
{[%clk 0:01:32.3]} 26. Bxd6 {[%clk 0:01:08.9]} 26... Qxd6 {[%clk 0:01:32.6]} 27.
Qc7 {[%clk 0:01:03.4]} 27... h5 {[%clk 0:01:24.1]} 28. Qxd6 {[%clk 0:00:44.1]}
28... Rxd6 {[%clk 0:01:23.4]} 29. Rc7 {[%clk 0:00:25]} 29... Re2 {[%clk
0:01:17.9]} 30. Rxb7 {[%clk 0:00:24.2]} 30... Rxa2 {[%clk 0:01:17.6]} 31. Ra7
{[%clk 0:00:22.2]} 31... Kh7 {[%clk 0:01:08.8]} 32. h4 {[%clk 0:00:21.6]} 32...
Kg6 {[%clk 0:01:01.9]} 33. b4 {[%clk 0:00:19]} 33... Kf5 {[%clk 0:00:55.5]} 34.
Rxg7 {[%clk 0:00:13]} 34... Rb2 {[%clk 0:00:55.4]} 35. Ra7 {[%clk 0:00:12.2]}
35... a2 {[%clk 0:00:53.8]} 36. Kh2 {[%clk 0:00:06.7]} 36... Rxf2 {[%clk
0:00:51]} 37. Kg3 {[%clk 0:00:04.9]} 37... Rb2 {[%clk 0:00:46.9]} 38. Rd3 {[%clk
0:00:03.7]} 38... Ke4 {[%clk 0:00:45.7]} 0-1

[Event "Early-Titled-Tuesday-Blitz-June-18-2024"]
[Site "Chess.com"]
[Date "2024.06.18"]
[Round "9"]
[White "js20000"]
[Black "Sam_ChessMood"]
[Result "0-1"]
[WhiteElo "2806"]
[BlackElo "2949"]
[TimeControl "180+1"]
[EndTime "9:46:10 PDT"]
[Termination "Sam_ChessMood won by resignation"]

1. e4 {[%clk 0:03:00.9]} 1... c5 {[%clk 0:02:57.3]} 2. Nf3 {[%clk 0:03:00.5]}
2... d6 {[%clk 0:02:57.5]} 3. c3 {[%clk 0:02:59.4]} 3... Nf6 {[%clk 0:02:57.1]}
4. h3 {[%clk 0:02:59.5]} 4... g6 {[%clk 0:02:55.3]} 5. Bd3 {[%clk 0:02:59.9]}
5... Bg7 {[%clk 0:02:55.1]} 6. Bc2 {[%clk 0:03:00.3]} 6... e5 {[%clk 0:02:52.5]}
7. d4 {[%clk 0:03:00.4]} 7... exd4 {[%clk 0:02:51.2]} 8. cxd4 {[%clk 0:03:01.3]}
8... O-O {[%clk 0:02:51]} 9. O-O {[%clk 0:03:01]} 9... Nc6 {[%clk 0:02:46.3]}
10. d5 {[%clk 0:03:00.7]} 10... Nb4 {[%clk 0:02:46.2]} 11. Nc3 {[%clk
0:03:01.4]} 11... Re8 {[%clk 0:02:37.9]} 12. Bb1 {[%clk 0:03:01]} 12... Rb8
{[%clk 0:02:36.7]} 13. a3 {[%clk 0:03:00.6]} 13... Na6 {[%clk 0:02:36.3]} 14.
Bf4 {[%clk 0:03:00.7]} 14... b5 {[%clk 0:02:26.4]} 15. e5 {[%clk 0:02:59.8]}
15... Nh5 {[%clk 0:02:25.5]} 16. Bg5 {[%clk 0:02:59.9]} 16... f6 {[%clk
0:02:17.3]} 17. exf6 {[%clk 0:02:56.1]} 17... Bxf6 {[%clk 0:02:09.6]} 18. Bh6
{[%clk 0:02:41.9]} 18... Rb7 {[%clk 0:01:56.5]} 19. g4 {[%clk 0:02:38]} 19...
Bg7 {[%clk 0:01:43.9]} 20. Bg5 {[%clk 0:02:37.7]} 20... Bf6 {[%clk 0:01:40]} 21.
Bh6 {[%clk 0:02:37.7]} 21... Bg7 {[%clk 0:01:38.4]} 22. Bg5 {[%clk 0:02:37.7]}
22... Nf6 {[%clk 0:01:28.3]} 23. a4 {[%clk 0:02:37.9]} 23... b4 {[%clk
0:01:25.2]} 24. Ne4 {[%clk 0:02:33.6]} 24... Rf7 {[%clk 0:01:22.2]} 25. Nfd2
{[%clk 0:02:29.8]} 25... Qd7 {[%clk 0:00:38.5]} 26. Bd3 {[%clk 0:02:12.9]} 26...
Nc7 {[%clk 0:00:38]} 27. Bxf6 {[%clk 0:01:54.3]} 27... Bxf6 {[%clk 0:00:38.9]}
28. Nc4 {[%clk 0:01:53.8]} 28... Be5 {[%clk 0:00:31.8]} 29. f4 {[%clk
0:01:36.1]} 29... Bd4+ {[%clk 0:00:28.2]} 30. Kh2 {[%clk 0:01:34.2]} 30... Nxd5
{[%clk 0:00:28.5]} 31. Ncxd6 {[%clk 0:01:33.6]} 31... Ne3 {[%clk 0:00:28.7]} 32.
Qb3 {[%clk 0:01:28.6]} 32... Bb7 {[%clk 0:00:22.9]} 33. Nxe8 {[%clk 0:01:12.8]}
33... Bd5 {[%clk 0:00:20.1]} 34. Bb5 {[%clk 0:00:52]} 34... Qe7 {[%clk
0:00:17.2]} 35. N4f6+ {[%clk 0:00:49.2]} 35... Rxf6 {[%clk 0:00:11.5]} 36. Nxf6+
{[%clk 0:00:48.6]} 36... Qxf6 {[%clk 0:00:11.8]} 37. Qd3 {[%clk 0:00:45.5]}
37... Qh4 {[%clk 0:00:11.9]} 38. Rg1 {[%clk 0:00:39.3]} 38... Qf2+ {[%clk
0:00:11.1]} 0-1

[Event "Early-Titled-Tuesday-Blitz-June-18-2024"]
[Site "Chess.com"]
[Date "2024.06.18"]
[Round "9"]
[White "Individoom"]
[Black "Zohid6"]
[Result "1-0"]
[WhiteElo "2806"]
[BlackElo "2959"]
[TimeControl "180+1"]
[EndTime "9:46:10 PDT"]
[Termination "Individoom won by resignation"]

1. d4 {[%clk 0:02:59]} 1... d5 {[%clk 0:02:58.8]} 2. Nf3 {[%clk 0:02:58.6]} 2...
Nf6 {[%clk 0:02:58.9]} 3. Bf4 {[%clk 0:02:46.7]} 3... c5 {[%clk 0:02:57.3]} 4.
e3 {[%clk 0:02:37.6]} 4... Nc6 {[%clk 0:02:57.2]} 5. Nbd2 {[%clk 0:02:27.8]}
5... e6 {[%clk 0:02:56.7]} 6. c3 {[%clk 0:02:27]} 6... Be7 {[%clk 0:02:56.1]} 7.
Bd3 {[%clk 0:02:22.3]} 7... Nh5 {[%clk 0:02:54.4]} 8. Be5 {[%clk 0:02:21.4]}
8... f6 {[%clk 0:02:54.5]} 9. Bg3 {[%clk 0:02:21.2]} 9... g6 {[%clk 0:02:50.9]}
10. O-O {[%clk 0:02:18.3]} 10... O-O {[%clk 0:02:45.2]} 11. Re1 {[%clk
0:02:10.7]} 11... Bd7 {[%clk 0:02:41.4]} 12. dxc5 {[%clk 0:02:01.3]} 12... e5
{[%clk 0:02:40.7]} 13. e4 {[%clk 0:01:56.3]} 13... Be6 {[%clk 0:02:21.9]} 14. b4
{[%clk 0:01:32.3]} 14... d4 {[%clk 0:02:11.4]} 15. Bc4 {[%clk 0:01:23.2]} 15...
Qc8 {[%clk 0:02:08]} 16. Qb3 {[%clk 0:01:20.8]} 16... Ng7 {[%clk 0:02:04.8]} 17.
cxd4 {[%clk 0:01:20]} 17... exd4 {[%clk 0:02:03.5]} 18. Rad1 {[%clk 0:01:15.7]}
18... Rd8 {[%clk 0:02:03.1]} 19. Bxe6+ {[%clk 0:01:14]} 19... Qxe6 {[%clk
0:02:02.4]} 20. Nc4 {[%clk 0:01:07.4]} 20... a5 {[%clk 0:02:02]} 21. a3 {[%clk
0:00:56.9]} 21... axb4 {[%clk 0:02:02]} 22. axb4 {[%clk 0:00:56.8]} 22... b5
{[%clk 0:02:02.2]} 23. cxb6 {[%clk 0:00:55.6]} 23... Bxb4 {[%clk 0:02:01.6]} 24.
Nfd2 {[%clk 0:00:40.4]} 24... Rd7 {[%clk 0:01:41.5]} 25. Bc7 {[%clk 0:00:35.7]}
25... Re8 {[%clk 0:01:38]} 26. Rf1 {[%clk 0:00:26.4]} 26... h5 {[%clk
0:01:35.1]} 27. Qa4 {[%clk 0:00:23]} 27... Bc3 {[%clk 0:01:32.4]} 28. Qb5 {[%clk
0:00:21]} 28... h4 {[%clk 0:01:29.7]} 29. h3 {[%clk 0:00:20.8]} 29... f5 {[%clk
0:01:11]} 30. Nb3 {[%clk 0:00:20.3]} 30... fxe4 {[%clk 0:01:08.7]} 31. Nc5
{[%clk 0:00:19.9]} 31... Qd5 {[%clk 0:01:09.2]} 32. Ne3 {[%clk 0:00:14.5]} 32...
Qg5 {[%clk 0:00:43.4]} 33. Qxc6 {[%clk 0:00:14.6]} 33... Rf7 {[%clk 0:00:44.3]}
34. Ng4 {[%clk 0:00:14.6]} 34... Bb4 {[%clk 0:00:31.4]} 35. Nxe4 {[%clk
0:00:14.3]} 1-0

[Event "Early-Titled-Tuesday-Blitz-June-18-2024"]
[Site "Chess.com"]
[Date "2024.06.18"]
[Round "9"]
[White "SuperPower2011"]
[Black "Bilan_Danila"]
[Result "1-0"]
[WhiteElo "2720"]
[BlackElo "2583"]
[TimeControl "180+1"]
[EndTime "9:46:10 PDT"]
[Termination "SuperPower2011 won by resignation"]

1. Nf3 {[%clk 0:02:58.8]} 1... d5 {[%clk 0:03:00.1]} 2. b3 {[%clk 0:02:58.9]}
2... Nf6 {[%clk 0:03:00.5]} 3. Bb2 {[%clk 0:02:59.2]} 3... c5 {[%clk 0:03:01.2]}
4. g3 {[%clk 0:02:58.8]} 4... Nc6 {[%clk 0:02:59.8]} 5. Bg2 {[%clk 0:02:58.9]}
5... Bf5 {[%clk 0:03:00.3]} 6. d4 {[%clk 0:02:58.7]} 6... e6 {[%clk 0:02:51.1]}
7. O-O {[%clk 0:02:56.5]} 7... h6 {[%clk 0:02:51.4]} 8. Nbd2 {[%clk 0:02:55.9]}
8... Be7 {[%clk 0:02:33.8]} 9. a3 {[%clk 0:02:54.5]} 9... O-O {[%clk 0:02:30.8]}
10. dxc5 {[%clk 0:02:54.7]} 10... Bxc5 {[%clk 0:02:28.8]} 11. b4 {[%clk
0:02:55.1]} 11... Be7 {[%clk 0:02:22.7]} 12. c4 {[%clk 0:02:54.8]} 12... dxc4
{[%clk 0:02:07.4]} 13. Nxc4 {[%clk 0:02:55.7]} 13... Be4 {[%clk 0:01:59.7]} 14.
Qb3 {[%clk 0:02:40.1]} 14... Nd5 {[%clk 0:01:50]} 15. Rfd1 {[%clk 0:02:35.9]}
15... Bf6 {[%clk 0:01:35.6]} 16. Ncd2 {[%clk 0:02:16.7]} 16... Bg6 {[%clk
0:01:21.3]} 17. e4 {[%clk 0:02:13.5]} 17... Bxb2 {[%clk 0:01:18.3]} 18. Qxb2
{[%clk 0:02:10.9]} 18... Qf6 {[%clk 0:01:16.4]} 19. e5 {[%clk 0:01:55.5]} 19...
Qe7 {[%clk 0:01:06.9]} 20. Nc4 {[%clk 0:01:54.7]} 20... f6 {[%clk 0:01:01.5]}
21. b5 {[%clk 0:01:51.8]} 21... Nxe5 {[%clk 0:00:59]} 22. Nfxe5 {[%clk
0:01:49.2]} 22... fxe5 {[%clk 0:00:59.9]} 23. Nxe5 {[%clk 0:01:45.9]} 23... Bf5
{[%clk 0:00:48]} 24. Re1 {[%clk 0:01:42.4]} 24... Rad8 {[%clk 0:00:41.6]} 25.
Rad1 {[%clk 0:01:40.4]} 25... Qc5 {[%clk 0:00:41.2]} 26. Rc1 {[%clk 0:01:25.2]}
26... Qb6 {[%clk 0:00:36.5]} 27. Nc4 {[%clk 0:01:23]} 27... Qc5 {[%clk
0:00:29.6]} 28. Ne3 {[%clk 0:01:21.1]} 28... Qb6 {[%clk 0:00:18.3]} 29. Nc4
{[%clk 0:01:08.9]} 29... Qc5 {[%clk 0:00:16.3]} 30. Qe5 {[%clk 0:00:45]} 30...
Bd3 {[%clk 0:00:10.5]} 31. Qxe6+ {[%clk 0:00:38.1]} 31... Kh8 {[%clk 0:00:10.8]}
32. Ne3 {[%clk 0:00:38.8]} 32... Qe7 {[%clk 0:00:02]} 33. Nxd5 {[%clk
0:00:36.6]} 33... Qxe6 {[%clk 0:00:01.6]} 34. Rxe6 {[%clk 0:00:37.5]} 1-0

[Event "Early-Titled-Tuesday-Blitz-June-18-2024"]
[Site "Chess.com"]
[Date "2024.06.18"]
[Round "9"]
[White "BM223344"]
[Black "Bkmzzzzz"]
[Result "1-0"]
[WhiteElo "2575"]
[BlackElo "2397"]
[TimeControl "180+1"]
[EndTime "9:46:12 PDT"]
[Termination "BM223344 won by resignation"]

1. d4 {[%clk 0:03:00.9]} 1... d5 {[%clk 0:02:59.1]} 2. Nf3 {[%clk 0:02:59.7]}
2... Nf6 {[%clk 0:02:58.4]} 3. g3 {[%clk 0:03:00]} 3... g6 {[%clk 0:02:50.9]} 4.
Bg2 {[%clk 0:03:00.4]} 4... Bg7 {[%clk 0:02:51.5]} 5. c4 {[%clk 0:03:00.9]} 5...
c6 {[%clk 0:02:50.5]} 6. O-O {[%clk 0:03:00.6]} 6... O-O {[%clk 0:02:50.3]} 7.
Qc2 {[%clk 0:03:01.1]} 7... Bf5 {[%clk 0:02:46]} 8. Qb3 {[%clk 0:03:00.6]} 8...
Qc8 {[%clk 0:02:38.7]} 9. Nc3 {[%clk 0:02:58.7]} 9... dxc4 {[%clk 0:02:21.1]}
10. Qxc4 {[%clk 0:02:58.4]} 10... Be6 {[%clk 0:02:20.8]} 11. Qd3 {[%clk
0:02:54.3]} 11... Bh3 {[%clk 0:02:14.3]} 12. Bf4 {[%clk 0:02:51.3]} 12... Bxg2
{[%clk 0:02:13.4]} 13. Kxg2 {[%clk 0:02:52.2]} 13... Na6 {[%clk 0:02:06.6]} 14.
Rac1 {[%clk 0:02:51.8]} 14... Nb4 {[%clk 0:02:06.2]} 15. Qb1 {[%clk 0:02:51.4]}
15... Nbd5 {[%clk 0:02:04.7]} 16. Be5 {[%clk 0:02:51.6]} 16... Qd7 {[%clk
0:01:58]} 17. Rfd1 {[%clk 0:02:48.3]} 17... Rfd8 {[%clk 0:01:45.5]} 18. e4
{[%clk 0:02:47]} 18... Nb6 {[%clk 0:01:34.6]} 19. b3 {[%clk 0:02:25.5]} 19...
Qe6 {[%clk 0:01:02.8]} 20. h3 {[%clk 0:02:07.3]} 20... h6 {[%clk 0:01:01.4]} 21.
Rd3 {[%clk 0:02:07.4]} 21... Rd7 {[%clk 0:00:56.5]} 22. Rcd1 {[%clk 0:02:07.4]}
22... Rad8 {[%clk 0:00:53.8]} 23. a4 {[%clk 0:01:55.6]} 23... Ne8 {[%clk
0:00:37.8]} 24. d5 {[%clk 0:01:40.6]} 24... cxd5 {[%clk 0:00:36.6]} 25. Bxg7
{[%clk 0:01:28.1]} 25... Nxg7 {[%clk 0:00:29.2]} 26. exd5 {[%clk 0:01:28.4]}
26... Nxd5 {[%clk 0:00:26.9]} 27. Re1 {[%clk 0:01:10.1]} 27... Qf6 {[%clk
0:00:20.1]} 28. Ne4 {[%clk 0:01:05]} 28... Qc6 {[%clk 0:00:19.7]} 29. Rc1 {[%clk
0:01:03.7]} 29... Qa6 {[%clk 0:00:20]} 30. Nc5 {[%clk 0:01:03.7]} 30... Qb6
{[%clk 0:00:18.1]} 31. Nxd7 {[%clk 0:01:03.7]} 31... Rxd7 {[%clk 0:00:19]} 32.
b4 {[%clk 0:00:58.7]} 32... e6 {[%clk 0:00:18.2]} 33. b5 {[%clk 0:00:58.2]}
33... Qa5 {[%clk 0:00:18]} 34. Qb3 {[%clk 0:00:57.6]} 34... Kh7 {[%clk
0:00:17.8]} 35. Rcd1 {[%clk 0:00:57.9]} 35... Nf5 {[%clk 0:00:17.7]} 36. Ne5
{[%clk 0:00:58.1]} 36... Re7 {[%clk 0:00:16.8]} 37. g4 {[%clk 0:00:55.8]} 37...
Nd6 {[%clk 0:00:17]} 38. Rf3 {[%clk 0:00:54.8]} 38... Kg7 {[%clk 0:00:16.3]} 39.
Rxd5 {[%clk 0:00:51.2]} 39... exd5 {[%clk 0:00:15.8]} 40. Qxd5 {[%clk
0:00:51.9]} 40... Qc7 {[%clk 0:00:16.3]} 41. Nd3 {[%clk 0:00:50.9]} 41... Nc8
{[%clk 0:00:15.9]} 42. Qd4+ {[%clk 0:00:50.7]} 42... Kh7 {[%clk 0:00:15.8]} 43.
Nf4 {[%clk 0:00:49.8]} 43... Nb6 {[%clk 0:00:15.5]} 44. a5 {[%clk 0:00:49.1]}
44... Rd7 {[%clk 0:00:16.1]} 45. axb6 {[%clk 0:00:48.8]} 45... axb6 {[%clk
0:00:12.1]} 46. Nd5 {[%clk 0:00:48.7]} 1-0

[Event "Early-Titled-Tuesday-Blitz-June-18-2024"]
[Site "Chess.com"]
[Date "2024.06.18"]
[Round "9"]
[White "Slovineanu"]
[Black "DinaBelenkaya"]
[Result "1-0"]
[WhiteElo "2556"]
[BlackElo "2351"]
[TimeControl "180+1"]
[EndTime "9:46:19 PDT"]
[Termination "Slovineanu won by checkmate"]

1. d4 {[%clk 0:03:00.9]} 1... d5 {[%clk 0:02:57.6]} 2. Nf3 {[%clk 0:03:00.7]}
2... Nf6 {[%clk 0:02:56.4]} 3. c4 {[%clk 0:03:01.1]} 3... dxc4 {[%clk
0:02:56.5]} 4. e3 {[%clk 0:03:01.4]} 4... a6 {[%clk 0:02:55]} 5. Bxc4 {[%clk
0:03:01.2]} 5... e6 {[%clk 0:02:54.7]} 6. O-O {[%clk 0:02:59.9]} 6... c5 {[%clk
0:02:55.3]} 7. dxc5 {[%clk 0:02:59.6]} 7... Bxc5 {[%clk 0:02:51.4]} 8. Qxd8+
{[%clk 0:02:58.7]} 8... Kxd8 {[%clk 0:02:52.3]} 9. Rd1+ {[%clk 0:02:56.1]} 9...
Ke7 {[%clk 0:02:52.3]} 10. Be2 {[%clk 0:02:56.6]} 10... Bd7 {[%clk 0:02:49.7]}
11. Nbd2 {[%clk 0:02:54.6]} 11... Bb5 {[%clk 0:02:47.4]} 12. Kf1 {[%clk
0:02:49.6]} 12... Nc6 {[%clk 0:02:46.7]} 13. b3 {[%clk 0:02:38.7]} 13... Rhd8
{[%clk 0:02:43.9]} 14. a4 {[%clk 0:02:35.3]} 14... Bd3 {[%clk 0:02:39.6]} 15.
Ne1 {[%clk 0:02:30.5]} 15... Nb4 {[%clk 0:02:35.6]} 16. Ba3 {[%clk 0:02:21.8]}
16... Bxe2+ {[%clk 0:02:23.8]} 17. Kxe2 {[%clk 0:02:21.7]} 17... Nfd5 {[%clk
0:02:24.6]} 18. Rac1 {[%clk 0:01:52.7]} 18... b6 {[%clk 0:02:21]} 19. Ne4 {[%clk
0:01:47]} 19... Rac8 {[%clk 0:02:17.5]} 20. Nxc5 {[%clk 0:01:45.4]} 20... bxc5
{[%clk 0:02:18.4]} 21. Nd3 {[%clk 0:01:41.8]} 21... Nxd3 {[%clk 0:01:56.2]} 22.
Rxd3 {[%clk 0:01:41.5]} 22... Nb4 {[%clk 0:01:54.1]} 23. Rxd8 {[%clk 0:01:34.1]}
23... Kxd8 {[%clk 0:01:52.7]} 24. Bxb4 {[%clk 0:01:29.5]} 24... cxb4 {[%clk
0:01:52]} 25. Rxc8+ {[%clk 0:01:30.1]} 25... Kxc8 {[%clk 0:01:52.4]} 26. Kd3
{[%clk 0:01:30.7]} 26... Kc7 {[%clk 0:01:45.5]} 27. Kc4 {[%clk 0:01:31.2]} 27...
Kb6 {[%clk 0:01:42.1]} 28. Kxb4 {[%clk 0:01:31.1]} 28... a5+ {[%clk 0:01:33.4]}
29. Kc4 {[%clk 0:01:31]} 29... Kc6 {[%clk 0:01:33.6]} 30. b4 {[%clk 0:01:30]}
30... axb4 {[%clk 0:01:33.6]} 31. Kxb4 {[%clk 0:01:30.4]} 31... Kb6 {[%clk
0:01:30.2]} 32. h4 {[%clk 0:01:27.6]} 32... h5 {[%clk 0:01:27.2]} 33. f3 {[%clk
0:01:21.5]} 33... f6 {[%clk 0:01:22.6]} 34. g4 {[%clk 0:01:16.1]} 34... hxg4
{[%clk 0:01:03.3]} 35. fxg4 {[%clk 0:01:16.3]} 35... f5 {[%clk 0:01:02.9]} 36.
gxf5 {[%clk 0:01:12.4]} 36... exf5 {[%clk 0:01:01.8]} 37. h5 {[%clk 0:01:12]}
37... Kc6 {[%clk 0:00:59.5]} 38. a5 {[%clk 0:01:11.4]} 38... Kd5 {[%clk
0:00:43.5]} 39. a6 {[%clk 0:01:03.8]} 39... Kc6 {[%clk 0:00:43.4]} 40. Ka5
{[%clk 0:01:04.2]} 40... Kc7 {[%clk 0:00:38.3]} 41. Kb5 {[%clk 0:01:00.9]} 41...
Kb8 {[%clk 0:00:35.5]} 42. Kb6 {[%clk 0:00:44.3]} 42... Ka8 {[%clk 0:00:34.9]}
43. a7 {[%clk 0:00:44.6]} 43... f4 {[%clk 0:00:09.8]} 44. exf4 {[%clk
0:00:41.6]} 44... g5 {[%clk 0:00:09.9]} 45. h6 {[%clk 0:00:41.9]} 45... gxf4
{[%clk 0:00:08.9]} 46. h7 {[%clk 0:00:42.3]} 46... f3 {[%clk 0:00:09.3]} 47.
h8=Q# {[%clk 0:00:42.5]} 1-0

[Event "Early-Titled-Tuesday-Blitz-June-18-2024"]
[Site "Chess.com"]
[Date "2024.06.18"]
[Round "9"]
[White "unbreakablepawn35"]
[Black "myburger"]
[Result "1-0"]
[WhiteElo "2406"]
[BlackElo "2512"]
[TimeControl "180+1"]
[EndTime "9:46:19 PDT"]
[Termination "unbreakablepawn35 won by resignation"]

1. c4 {[%clk 0:03:00.9]} 1... f5 {[%clk 0:02:55.5]} 2. Nc3 {[%clk 0:03:00.1]}
2... Nf6 {[%clk 0:02:56.4]} 3. d4 {[%clk 0:02:58.9]} 3... e6 {[%clk 0:02:57.3]}
4. Bf4 {[%clk 0:02:56.3]} 4... Bb4 {[%clk 0:02:55.5]} 5. e3 {[%clk 0:02:56.3]}
5... O-O {[%clk 0:02:53.2]} 6. Bd3 {[%clk 0:02:55.4]} 6... b6 {[%clk 0:02:51.8]}
7. Nf3 {[%clk 0:02:54.8]} 7... Bb7 {[%clk 0:02:51.3]} 8. Qc2 {[%clk 0:02:55]}
8... d6 {[%clk 0:02:50]} 9. O-O {[%clk 0:02:55.4]} 9... Nbd7 {[%clk 0:02:49.7]}
10. Qe2 {[%clk 0:02:51.6]} 10... Bxf3 {[%clk 0:02:44]} 11. Qxf3 {[%clk
0:02:51.6]} 11... Bxc3 {[%clk 0:02:42.1]} 12. bxc3 {[%clk 0:02:51.4]} 12... e5
{[%clk 0:02:43]} 13. Bxf5 {[%clk 0:02:24.8]} 13... exf4 {[%clk 0:02:42]} 14.
exf4 {[%clk 0:02:25.7]} 14... g6 {[%clk 0:02:37.1]} 15. Be6+ {[%clk 0:02:25.6]}
15... Kg7 {[%clk 0:02:36.7]} 16. Rae1 {[%clk 0:02:25.8]} 16... Nh5 {[%clk
0:02:31.3]} 17. f5 {[%clk 0:02:25.1]} 17... Kh8 {[%clk 0:02:15.6]} 18. Qe4
{[%clk 0:01:25.7]} 18... Ndf6 {[%clk 0:02:11.5]} 19. Qc6 {[%clk 0:01:22.6]}
19... gxf5 {[%clk 0:01:58.3]} 20. Bxf5 {[%clk 0:01:22.5]} 20... Ng7 {[%clk
0:01:57.3]} 21. Bh3 {[%clk 0:01:21.9]} 21... Nfh5 {[%clk 0:01:55.7]} 22. g3
{[%clk 0:01:14.5]} 22... Qg5 {[%clk 0:01:52.2]} 23. f4 {[%clk 0:01:12.6]} 23...
Qg6 {[%clk 0:01:45.9]} 24. f5 {[%clk 0:01:04.6]} 24... Qg5 {[%clk 0:01:44.9]}
25. Qxc7 {[%clk 0:00:58.5]} 25... Rae8 {[%clk 0:01:41.3]} 26. Rxe8 {[%clk
0:00:55.8]} 26... Rxe8 {[%clk 0:01:42.2]} 27. Qxd6 {[%clk 0:00:51.1]} 27... Nf6
{[%clk 0:01:32.1]} 28. c5 {[%clk 0:00:45.2]} 28... bxc5 {[%clk 0:01:27.4]} 29.
dxc5 {[%clk 0:00:46.1]} 29... Qe3+ {[%clk 0:01:12.6]} 30. Kh1 {[%clk 0:00:45.5]}
30... Qxc3 {[%clk 0:01:08.6]} 31. c6 {[%clk 0:00:42.4]} 31... Rc8 {[%clk
0:00:51]} 32. c7 {[%clk 0:00:41.9]} 32... Rxc7 {[%clk 0:00:46]} 33. Qf8+ {[%clk
0:00:30.4]} 33... Ng8 {[%clk 0:00:44.2]} 34. f6 {[%clk 0:00:30.8]} 34... h6
{[%clk 0:00:14.4]} 35. f7 {[%clk 0:00:23]} 1-0

[Event "Early-Titled-Tuesday-Blitz-June-18-2024"]
[Site "Chess.com"]
[Date "2024.06.18"]
[Round "9"]
[White "Juicy_Fork"]
[Black "NovozhilovSemen"]
[Result "1-0"]
[WhiteElo "2453"]
[BlackElo "2629"]
[TimeControl "180+1"]
[EndTime "9:46:20 PDT"]
[Termination "Juicy_Fork won by resignation"]

1. e4 {[%clk 0:03:00.9]} 1... c5 {[%clk 0:02:59.2]} 2. Nf3 {[%clk 0:03:00.5]}
2... Nc6 {[%clk 0:02:59.1]} 3. Bb5 {[%clk 0:02:58.5]} 3... g6 {[%clk 0:02:59]}
4. O-O {[%clk 0:02:57.5]} 4... Bg7 {[%clk 0:02:58.5]} 5. c3 {[%clk 0:02:57.9]}
5... Nf6 {[%clk 0:02:58.2]} 6. Qa4 {[%clk 0:02:56.9]} 6... O-O {[%clk 0:02:55]}
7. d4 {[%clk 0:02:56.4]} 7... cxd4 {[%clk 0:02:36.5]} 8. cxd4 {[%clk 0:02:57.3]}
8... a6 {[%clk 0:02:35.3]} 9. Re1 {[%clk 0:02:56]} 9... Qb6 {[%clk 0:02:25.3]}
10. Bf1 {[%clk 0:02:42.5]} 10... d5 {[%clk 0:02:22.1]} 11. e5 {[%clk 0:02:40.5]}
11... Ne4 {[%clk 0:02:22.1]} 12. h3 {[%clk 0:02:39.6]} 12... f6 {[%clk
0:02:17.2]} 13. exf6 {[%clk 0:02:19.4]} 13... Bxf6 {[%clk 0:02:18.1]} 14. Rd1
{[%clk 0:01:28.8]} 14... Bg7 {[%clk 0:02:09.2]} 15. Nc3 {[%clk 0:01:25.9]} 15...
Nxc3 {[%clk 0:02:09.3]} 16. bxc3 {[%clk 0:01:26.8]} 16... Bxh3 {[%clk
0:02:09.9]} 17. Be3 {[%clk 0:01:06]} 17... Bg4 {[%clk 0:02:08.6]} 18. Be2 {[%clk
0:01:05.5]} 18... Qc7 {[%clk 0:02:05.1]} 19. Qb3 {[%clk 0:00:57.9]} 19... e6
{[%clk 0:02:04.5]} 20. Rd2 {[%clk 0:00:52.3]} 20... b5 {[%clk 0:02:00.3]} 21.
Ng5 {[%clk 0:00:48.5]} 21... Bxe2 {[%clk 0:01:54.1]} 22. Rxe2 {[%clk 0:00:49.4]}
22... Rae8 {[%clk 0:01:51.5]} 23. Rae1 {[%clk 0:00:42.1]} 23... Na5 {[%clk
0:01:41.5]} 24. Qb4 {[%clk 0:00:31.7]} 24... h6 {[%clk 0:01:41]} 25. Nh3 {[%clk
0:00:25.3]} 25... Nc4 {[%clk 0:01:40.3]} 26. Bc1 {[%clk 0:00:24.9]} 26... e5
{[%clk 0:01:37.8]} 27. dxe5 {[%clk 0:00:19.8]} 27... Rxe5 {[%clk 0:01:38]} 28.
Rxe5 {[%clk 0:00:15.2]} 28... Nxe5 {[%clk 0:01:37.2]} 29. Bf4 {[%clk 0:00:15.4]}
29... g5 {[%clk 0:01:27.9]} 30. Bg3 {[%clk 0:00:14.3]} 30... g4 {[%clk
0:01:27.5]} 31. Nf4 {[%clk 0:00:13.6]} 31... Qc4 {[%clk 0:01:21]} 32. Qd6 {[%clk
0:00:10.4]} 32... Rxf4 {[%clk 0:01:19.1]} 33. Qe6+ {[%clk 0:00:03.1]} 33... Kh7
{[%clk 0:01:16.8]} 34. Rxe5 {[%clk 0:00:02.4]} 34... Bxe5 {[%clk 0:01:16]} 35.
Qxe5 {[%clk 0:00:02.9]} 35... Rf7 {[%clk 0:01:15.3]} 36. Qe6 {[%clk 0:00:03.3]}
36... d4 {[%clk 0:01:12.8]} 37. Qe4+ {[%clk 0:00:02.9]} 37... Kg8 {[%clk
0:01:10.5]} 38. Qg6+ {[%clk 0:00:02.9]} 38... Rg7 {[%clk 0:01:08.5]} 39. Qe8+
{[%clk 0:00:03.1]} 39... Kh7 {[%clk 0:01:08.9]} 40. Qe4+ {[%clk 0:00:04]} 40...
Rg6 {[%clk 0:01:06.8]} 41. Qe7+ {[%clk 0:00:04.2]} 41... Kg8 {[%clk 0:01:07.1]}
42. Qe8+ {[%clk 0:00:04.6]} 42... Kh7 {[%clk 0:01:06.5]} 43. Be5 {[%clk
0:00:04]} 43... Rg8 {[%clk 0:01:02.3]} 44. Qe7+ {[%clk 0:00:03.6]} 44... Kg6
{[%clk 0:01:01.7]} 45. Qf6+ {[%clk 0:00:03.9]} 45... Kh7 {[%clk 0:01:01.3]} 46.
Qf5+ {[%clk 0:00:03.5]} 46... Rg6 {[%clk 0:01:00.8]} 47. Qd7+ {[%clk 0:00:03.4]}
47... Kg8 {[%clk 0:01:01.2]} 48. Qe8+ {[%clk 0:00:03.4]} 1-0